Workbook

Sheet DivineSenseConfig
A1: ID | B1: QualityBonusChance | C1: exp | D1: MaxNum
A2: int | B2: float[] | C2: int | D2: int | G2: 5000 | H2: 7500 | I2: 15000 | J2: 30000 | K2: 50000
G3: 白 | H3: 绿 | I3: 蓝 | J3: 紫 | K3: 橙 | L3: 红
A4: 等级 | B4: 权重 | C4: 经验 | D4: 同时最大存在神识数量 | E4: 升级数量 | G4: 品质1 | H4: 品质2 | I4: 品质3 | J4: 品质4 | K4: 品质5 | L4: 品质6 | AC4: 主线数量 | AD4: 主线 | AE4: 自动回复 | AF4: 资源事件 | AG4: 商店（广告）
A5: 1 | B5: =_xlfn.TEXTJOIN(";",1,G5:L5) -> 700;200;100;0;0;0 | C5: =E5*100 -> 500 | D5: 2 | E5: 5 | F5: =SUM(E$5:E5) -> 5 | G5: =1000-SUM(H5:L5) -> 700 | H5: =I5*2 -> 200 | I5: 100 | J5: 0 | K5: 0 | L5: 0 | N5: =G5/1000*G$2 -> 3500 | O5: =H5/1000*H$2 -> 1500 | P5: =I5/1000*I$2 -> 1500 | Q5: =J5/1000*J$2 -> 0 | R5: =K5/1000*K$2 -> 0 | T5: =SUM(N5:R5) -> 6500 | U5: =T5*20/1000 -> 130 | AA5: 1 | AB5: 60 | AC5: 17 | AD5: 39 | AE5: 6 | AF5: 6 | AG5: 8 | AH5: =SUM(AD5:AG5) -> 59
A6: 2 | B6: =_xlfn.TEXTJOIN(";",1,G6:L6) -> 676;216;108;0;0;0 | C6: =E6*100 -> 500 | D6: 3 | E6: 5 | F6: =SUM(E$5:E6) -> 10 | G6: =1000-SUM(H6:L6) -> 676 | H6: =I6*2 -> 216 | I6: 108 | J6: 0 | K6: 0 | L6: 0 | N6: 3380 | O6: 1620 | P6: 1620 | Q6: 0 | R6: 0 | T6: =SUM(N6:R6) -> 6620 | U6: =T6*20/1000 -> 132.4 | AA6: 2 | AB6: 90 | AC6: 6 | AD6: 10 | AE6: 6 | AF6: 6 | AG6: 8 | AH6: 30
A7: 3 | B7: 649;234;117;0;0;0 | C7: 500 | D7: 4 | E7: 5 | F7: =SUM(E$5:E7) -> 15 | G7: 649 | H7: 234 | I7: 117 | J7: 0 | K7: 0 | L7: 0 | N7: 3245 | O7: 1755 | P7: 1755 | Q7: 0 | R7: 0 | T7: 6755 | U7: 135.1 | AA7: 3 | AB7: 120 | AC7: 3 | AD7: 10 | AE7: 6 | AF7: 6 | AG7: 8 | AH7: 30
A8: 4 | B8: 622;252;126;0;0;0 | C8: 500 | D8: 5 | E8: 5 | F8: =SUM(E$5:E8) -> 20 | G8: 622 | H8: 252 | I8: 126 | J8: 0 | K8: 0 | L8: 0 | N8: 3110 | O8: 1890 | P8: 1890 | Q8: 0 | R8: 0 | T8: 6890 | U8: 137.8 | AA8: 4 | AB8: 150 | AC8: 4 | AD8: 10 | AE8: 6 | AF8: 6 | AG8: 8 | AH8: 30
A9: 5 | B9: 595;270;135;0;0;0 | C9: 1000 | D9: 6 | E9: 10 | F9: =SUM(E$5:E9) -> 30 | G9: 595 | H9: 270 | I9: 135 | J9: 0 | K9: 0 | L9: 0 | N9: 2975 | O9: 2025 | P9: 2025 | Q9: 0 | R9: 0 | T9: 7025 | U9: 140.5 | AA9: 5 | AB9: 180 | AC9: 1 | AD9: 0 | AE9: 6 | AF9: 6 | AG9: 8 | AH9: 20
A10: 6 | B10: 550;288;144;18;0;0 | C10: 1000 | D10: 6 | E10: 10 | F10: =SUM(E$5:E10) -> 40 | G10: 550 | H10: 288 | I10: 144 | J10: 18 | K10: 0 | L10: 0 | N10: 2750 | O10: 2160 | P10: 2160 | Q10: 540 | R10: 0 | T10: 7610 | U10: 152.2 | AA10: 6 | AB10: 210 | AD10: 0 | AE10: 6 | AF10: 6 | AG10: 8 | AH10: 20
A11: 7 | B11: 515;306;153;26;0;0 | C11: 1000 | D11: 6 | E11: 10 | F11: =SUM(E$5:E11) -> 50 | G11: 515 | H11: 306 | I11: 153 | J11: 26 | K11: 0 | L11: 0 | N11: 2575 | O11: 2295 | P11: 2295 | Q11: 780 | R11: 0 | T11: 7945 | U11: 158.9 | AA11: 7 | AB11: 240 | AD11: 0 | AE11: 6 | AF11: 6 | AG11: 8 | AH11: 20
A12: 8 | B12: 480;324;162;34;0;0 | C12: 1000 | D12: 6 | E12: 10 | F12: =SUM(E$5:E12) -> 60 | G12: 480 | H12: 324 | I12: 162 | J12: 34 | K12: 0 | L12: 0 | N12: 2400 | O12: 2430 | P12: 2430 | Q12: 1020 | R12: 0 | T12: 8280 | U12: 165.6 | AA12: 8 | AB12: 270 | AD12: 0 | AE12: 6 | AF12: 6 | AG12: 8 | AH12: 20
A13: 9 | B13: 445;342;171;42;0;0 | C13: 2000 | D13: 6 | E13: 20 | F13: =SUM(E$5:E13) -> 80 | G13: 445 | H13: 342 | I13: 171 | J13: 42 | K13: 0 | L13: 0 | N13: 2225 | O13: 2565 | P13: 2565 | Q13: 1260 | R13: 0 | T13: 8615 | U13: 172.3 | AA13: 9 | AB13: 300 | AD13: 0 | AE13: 6 | AF13: 6 | AG13: 8 | AH13: 20
A14: 10 | B14: 410;360;180;50;0;0 | C14: 2000 | D14: 6 | E14: 20 | F14: =SUM(E$5:E14) -> 100 | G14: 410 | H14: 360 | I14: 180 | J14: 50 | K14: 0 | L14: 0 | N14: 2050 | O14: 2700 | P14: 2700 | Q14: 1500 | R14: 0 | T14: 8950 | U14: 179
A15: 11 | B15: 369;378;189;58;6;0 | C15: 2000 | D15: 6 | E15: 20 | F15: =SUM(E$5:E15) -> 120 | G15: 369 | H15: 378 | I15: 189 | J15: 58 | K15: 6 | L15: 0 | N15: 1845 | O15: 2835 | P15: 2835 | Q15: 1740 | R15: 300 | T15: 9555 | U15: 191.1
A16: 12 | B16: 328;396;198;66;12;0 | C16: 2000 | D16: 6 | E16: 20 | F16: =SUM(E$5:E16) -> 140 | G16: 328 | H16: 396 | I16: 198 | J16: 66 | K16: 12 | L16: 0 | N16: 1640 | O16: 2970 | P16: 2970 | Q16: 1980 | R16: 600 | T16: 10160 | U16: 203.2
A17: 13 | B17: 287;414;207;74;18;0 | C17: 2000 | D17: 6 | E17: 20 | F17: =SUM(E$5:E17) -> 160 | G17: 287 | H17: 414 | I17: 207 | J17: 74 | K17: 18 | L17: 0 | N17: 1435 | O17: 3105 | P17: 3105 | Q17: 2220 | R17: 900 | T17: 10765 | U17: 215.3
A18: 14 | B18: 246;432;216;82;24;0 | C18: 2000 | D18: 6 | E18: 20 | F18: =SUM(E$5:E18) -> 180 | G18: 246 | H18: 432 | I18: 216 | J18: 82 | K18: 24 | L18: 0 | N18: 1230 | O18: 3240 | P18: 3240 | Q18: 2460 | R18: 1200 | T18: 11370 | U18: 227.4
A19: 15 | B19: 205;450;225;90;30;0 | C19: 2000 | D19: 6 | E19: 20 | F19: =SUM(E$5:E19) -> 200 | G19: 205 | H19: 450 | I19: 225 | J19: 90 | K19: 30 | L19: 0 | N19: 1025 | O19: 3375 | P19: 3375 | Q19: 2700 | R19: 1500 | T19: 11975 | U19: 239.5
A20: 16 | B20: 164;468;234;98;36;0 | C20: 2000 | D20: 6 | E20: 20 | F20: =SUM(E$5:E20) -> 220 | G20: 164 | H20: 468 | I20: 234 | J20: 98 | K20: 36 | L20: 0 | N20: 820 | O20: 3510 | P20: 3510 | Q20: 2940 | R20: 1800 | T20: 12580 | U20: 251.6
A21: 17 | B21: 123;486;243;106;42;0 | C21: 2000 | D21: 6 | E21: 20 | F21: =SUM(E$5:E21) -> 240 | G21: 123 | H21: 486 | I21: 243 | J21: 106 | K21: 42 | L21: 0 | N21: 615 | O21: 3645 | P21: 3645 | Q21: 3180 | R21: 2100 | T21: 13185 | U21: 263.7
A22: 18 | B22: 82;504;252;114;48;0 | C22: 2000 | D22: 6 | E22: 20 | F22: =SUM(E$5:E22) -> 260 | G22: 82 | H22: 504 | I22: 252 | J22: 114 | K22: 48 | L22: 0 | N22: 410 | O22: 3780 | P22: 3780 | Q22: 3420 | R22: 2400 | T22: 13790 | U22: 275.8
A23: 19 | B23: 41;522;261;122;54;0 | C23: 2000 | D23: 6 | E23: 20 | F23: =SUM(E$5:E23) -> 280 | G23: 41 | H23: 522 | I23: 261 | J23: 122 | K23: 54 | L23: 0 | N23: 205 | O23: 3915 | P23: 3915 | Q23: 3660 | R23: 2700 | T23: 14395 | U23: 287.9
A24: 20 | B24: 0;540;270;130;60;0 | C24: 1000000 | D24: 6 | E24: 10000 | F24: =SUM(E$5:E24) -> 10280 | G24: 0 | H24: 540 | I24: 270 | J24: 130 | K24: 60 | L24: 0 | N24: =G24/1000*G$2 -> 0 | O24: =H24/1000*H$2 -> 4050 | P24: 4050 | Q24: 3900 | R24: 3000 | T24: 15000 | U24: 300
